Cogmind - Beta 15 @@@ ROGUE MODE // 2025.07.19 @ 20:50:34 Player: kim.jet.wav Result: Self-destructed Performance ------------- Evolutions (1) 500 Regions Visited (2) 400 Robots Destroyed (3) 15 Value Destroyed (86) 86 Prototype IDs (0) 0 Alien Tech Used (0) 0 Bonus (0) 0 TOTAL SCORE: 1001 Bonus ------- None Cogmind --------- Core Integrity 366/400 Matter 241/300 Energy 216/250 System Corruption 0% Temperature Warm (193) Movement Walking (190) Ox1 Location -9/Materials Parts ------- > --- POWER (1) -------- Ion Engine > --- PROPULSION (2) --- Aluminum Leg Aluminum Leg > --- UTILITY (3) ------ Medium Storage Unit Structural Scanner Seismic Detector > --- WEAPON (3) ------- EM Shotgun Medium Laser Small Laser > --- INVENTORY (10) --- Ion Engine Aluminum Leg Aluminum Leg Targeting Computer Grenade Launcher Peak State ------------ > --- POWER ------------ Ion Engine > --- PROPULSION ------- Aluminum Leg Aluminum Leg > --- UTILITY ---------- Medium Storage Unit Structural Scanner Seismic Detector > --- WEAPON ----------- EM Shotgun Medium Laser Small Laser > --- INVENTORY -------- Ion Engine Targeting Computer Grenade Launcher [Rating: 10] Favorites ----------- Power Ion Engine Engine Ion Engine Propulsion Aluminum Leg Leg Aluminum Leg Utility Seismic Detector Device Seismic Detector Storage Medium Storage Unit Weapon Medium Laser Energy Gun Medium Laser Launcher Grenade Launcher Build | -11 -10 -9 ------- Run | Yrd Mat Mat Slots Evolved 2 | . . 2 Power . | . . . Propulsion . | . . . Utility 1 | . . 1 Weapon 1 | . . 1 Parts Attached 12 | 7 1 4 Power 1 | 1 . . Engine 1 | 1 . . Core . | . . . Reactor . | . . . Propulsion 3 | 2 . 1 Treads . | . . . Leg 3 | 2 . 1 Wheel . | . . . Hover . | . . . Flight . | . . . Utility 4 | 2 1 1 Device 2 | 1 . 1 Storage 2 | 1 1 . Processor . | . . . Hackware . | . . . Protection . | . . . Artifact . | . . . Weapon 4 | 2 . 2 Energy Gun 3 | 2 . 1 Energy Cannon . | . . . Ballistic Gun . | . . . Ballistic Cannon . | . . . Launcher 1 | . . 1 Special Weapon . | . . . Impact Weapon . | . . . Slashing Weapon . | . . . Piercing Weapon . | . . . Special Melee Weapon . | . . . Unidentified Prototypes . | . . . Parts Lost . | . . . Power . | . . . Propulsion . | . . . Utility . | . . . Weapon . | . . . Highest Loss Streak . | . . . To Critical Strikes . | . . . Average Backups 2 | . 2 2 Power . | . 1 1 Propulsion . | . . . Utility . | . . 1 Weapon . | . . . Tool/Special . | . . . Unused Backups 3 | . . 3 Power 1 | . . 1 Propulsion 1 | . . 1 Utility 1 | . . 1 Weapon . | . . . Tool/Special . | . . . Average Slot Usage (%) 99 | . 100 99 Engine 11 | . 14 11 Leg 23 | . 28 22 Device 19 | . 14 22 Storage 11 | . 14 11 Energy Gun 26 | . 28 25 Launcher 5 | . . 6 Peak Build Rating 10 | 7 7 10 Average Rating 8 | 5 7 9 On Entrance 4 | . 7 7 Naked Turns . | . . . Heaviest Build 23 | 14 19 23 Greatest Support 20 | 20 20 20 Greatest Overweight (x) 3 | 3 . 1 Average Overweight (x) . | . . 1 Largest Inventory Capacity 10 | 8 10 10 Average Capacity 9 | 7 9 10 Most Carried 5 | 1 4 5 Average Carried 2 | . 2 2 Final Capacity 10 | 8 10 10 Final Carried 5 | 1 4 5 Class Distribution -------------------- 68% | Skirmisher 31% | Mutant Dominant Class ---------------- Mutant | -10/Materials Skirmisher | -9/Materials Resources | -11 -10 -9 ----------- Run | Yrd Mat Mat Matter Collected 281 | 232 . 49 Remotely . | . . . Salvage Created 129 | 25 . 104 Parts 9 | 3 . 6 Haulers Intercepted . | . . . Recyclers Shooed . | . . . Parts Field Recycled . | . . . Retrieved Matter . | . . . Parts Self-Destructed . | . . . Prevented . | . . . Kills | -11 -10 -9 ------- Run | Yrd Mat Mat Combat Hostiles Destroyed 2 | . . 2 Guns 2 | . . 2 Classes Destroyed 3 | 1 . 2 Tunneler 1 | 1 . . Grunt 1 | . . 1 Sentry 1 | . . 1 Best Kill Streak 1 | 1 . 1 Combat Bots Only 1 | . . 1 Max Kills in Single Turn 1 | 1 . 1 Gunslinging . | . . . Exploded . | . . . Melee . | . . . Uniques/NPCs Destroyed . | . . . Combat | -11 -10 -9 -------- Run | Yrd Mat Mat Hostile Shots Fired 15 | . . 15 Missed 4 | . . 4 Hits 11 | . . 11 Melee 3 | . . 3 Projectile 8 | . . 8 Damage Taken 213 | . . 213 Core 34 | . . 34 Absorbed by Shields . | . . . Core Remaining (%) 100 | 100 100 . Volleys Fired 9 | 1 . 8 Largest 3 | 2 . 3 Hottest 135 | 90 . 135 Shots Fired 25 | 2 . 23 Gun 25 | 2 . 23 Cannon . | . . . Launcher . | . . . Special . | . . . Kinetic . | . . . Thermal 18 | 2 . 16 Explosive . | . . . Electromagnetic 7 | . . 7 Robot Hit Streak 8 | 1 . 8 Robot Miss Streak 2 | . . 2 Penetration Max . | . . . Secondary Targets . | . . . Shots Hit Robots 16 | 1 . 15 Core Hits 6 | 1 . 5 Critical Kills . | . . . Critical Parts Destroyed . | . . . Critical Strikes . | . . . Melee Attacks . | . . . Impact . | . . . Slashing . | . . . Piercing . | . . . Sneak Attacks . | . . . Combat Hostiles . | . . . Follow-up Attacks . | . . . Damage Inflicted 204 | 12 . 192 Guns 204 | 12 . 192 Cannons . | . . . Explosions . | . . . Melee . | . . . Ramming . | . . . Kinetic . | . . . Thermal 120 | 12 . 108 Explosive . | . . . Electromagnetic 84 | . . 84 Impact . | . . . Slashing . | . . . Piercing . | . . . Highest Corruption 1 | . 1 . Average Corruption 1 | . 1 . Corruption Purged . | . . . Corruption Blocked . | . . . Overload Shots . | . . . Overflow Damage . | . . . Projectiles . | . . . Explosions . | . . . Melee . | . . . Knockbacks . | . . . Impact . | . . . Kinetic . | . . . Secondary . | . . . Self-Inflicted Damage . | . . . Shots . | . . . Rammed . | . . . Targets Rammed . | . . . Kicked . | . . . Crushed . | . . . Highest Temperature 216 | 30 . 216 Average Temperature 86 | 17 . 94 Received Heat Transfer 36 | . . 36 Siege Activations . | . . . Martial Activations . | . . . Shielding Activations . | . . . Robots Disrupted . | . . . Combat Hostiles . | . . . Robots Corrupted . | . . . Combat Hostiles . | . . . Parts Fried . | . . . Impact Corruptions . | . . . Robots Melted . | . . . Combat Hostiles . | . . . Parts Melted . | . . . Heat Transferred 322 | 37 . 285 Parts Sabotaged . | . . . Parts Stolen . | . . . Parts Stripped . | . . . Power Chain Reactions . | . . . Alert | -11 -10 -9 ------- Run | Yrd Mat Mat Maximum Alert Level . | . . . Low Security (%) 100 | 100 100 100 Level 1 . | . . . Level 2 . | . . . Level 3 . | . . . Level 4 . | . . . Level 5 . | . . . High Security . | . . . Max Security . | . . . Peak Influence 30 | 5 3 30 Initial 3 | . 3 . Average 3 | . . 5 Influence Increases 71 | 5 . 66 Destroy 0b10 Robot/C 40 | . . 40 Destroy 0b10 Robot/NC 5 | 5 . . Destroy Leader 20 | . . 20 Successful Hack 6 | . . 6 Influence Decreases 71 | . 5 66 Entered New Map 2 | . 2 . Time Decay 69 | . 3 66 Squads Dispatched 2 | . . 2 Investigation . | . . . Extermination . | . . . Reinforcement 2 | . . 2 Assault . | . . . Garrison . | . . . Intercept . | . . . Searches Triggered . | . . . Construction Impeded . | . . . Haulers Reinforced . | . . . Active Scanning Responses . | . . . Cargo Convoy Interrupts . | . . . Stealth | -11 -10 -9 --------- Run | Yrd Mat Mat Distress Signals 1 | . . 1 Communications Jammed . | . . . Distress Signals . | . . . Times Spotted 7 | . 1 6 Peak Tracking Total 3 | . 1 3 Tactical Retreats . | . . . Traps | -11 -10 -9 ------- Run | Yrd Mat Mat Traps Triggered 1 | . 1 . Indirectly . | . . . Trap Hack Attempts . | . . . Triggered . | . . . Disarmed . | . . . Reprogrammed . | . . . Reused . | . . . Traps Extracted . | . . . Installed . | . . . Triggered . | . . . Machines | -11 -10 -9 ---------- Run | Yrd Mat Mat Machines Disabled . | . . . Max in Single Turn . | . . . Machines Repaired . | . . . Machines Dismantled . | . . . Machines Sabotaged . | . . . Overloaded Fab Kills . | . . . Hacking | -11 -10 -9 --------- Run | Yrd Mat Mat Machines Accessed 2 | . . 2 Terminals 2 | . . 2 Fabricators . | . . . Repair Stations . | . . . Recycling Units . | . . . Scanalyzers . | . . . Garrison Access . | . . . Total Hacks 2 | . . 2 Successful 2 | . . 2 Failed . | . . . Catastrophic . | . . . Database Lockouts . | . . . Manual 1 | . . 1 Terminals 2 | . . 2 Fabricators . | . . . Repair Stations . | . . . Recycling Units . | . . . Scanalyzers . | . . . Garrison Access . | . . . Terminal Hacks 1 | . . 1 Zone Layout 1 | . . 1 Fabricator Hacks . | . . . Repair Station Hacks . | . . . Recycling Unit Hacks . | . . . Scanalyzer . | . . . Garrison Access Hacks . | . . . Unauthorized Hacks 1 | . . 1 Terminals 1 | . . 1 Assimilate 1 | . . 1 Fabricators . | . . . Repair Stations . | . . . Recycling Units . | . . . Scanalyzers . | . . . Garrison Access . | . . . Data Cores Recovered . | . . . Used . | . . . Hacking Detections 1 | . . 1 Full Trace Events . | . . . Feedback Events . | . . . Feedback Blocked . | . . . Robot Schematics Acquired . | . . . Robots Built . | . . . Authchips . | . . . Time . | . . . Total Robot Build Rating . | . . . Part Schematics Acquired . | . . . Parts Built . | . . . Authchips . | . . . Time . | . . . Total Part Build Rating . | . . . Parts Repaired . | . . . Time . | . . . Parts Recycled . | . . . Recycled Matter . | . . . Retrieved Matter . | . . . Retrieved Components . | . . . Parts Scanalyzed . | . . . Part Schematics Acquired . | . . . Parts Damaged . | . . . Bothacking | -11 -10 -9 ------------ Run | Yrd Mat Mat Used RIF Installer . | . . . Robots Hacked . | . . . Non-combat . | . . . Combat . | . . . Robot Hacks Applied . | . . . Relay Couplers Released . | . . . Fabnet Peak Effective % . | . . . Robots Rewired . | . . . Allies Hacked . | . . . Hacks Repelled . | . . . Allies | -11 -10 -9 -------- Run | Yrd Mat Mat Total Allies . | . . . Largest Group . | . . . Highest-Rated Group . | . . . Highest-Rated Ally . | . . . Total Orders . | . . . Ally Attacks . | . . . Total Damage . | . . . Kills . | . . . Allies Corrupted . | . . . Allies Melted . | . . . Intel | -11 -10 -9 ------- Run | Yrd Mat Mat Active Infowar (turns) 512 | 3 131 378 Structural 377 | . . 377 Seismic 512 | 3 131 378 Robot Analysis Total . | . . . Derelict Logs Recovered . | . . . Drone Launches . | . . . Drone Recoveries . | . . . Exploration | -11 -10 -9 ------------- Run | Yrd Mat Mat Turns Passed 568 | 59 131 378 Spaces Moved 269 | 36 100 133 Core 6 | 6 . . Treads . | . . . Legs 263 | 30 100 133 Wheels . | . . . Hover . | . . . Flight . | . . . Fastest Speed 50 | 50 120 190 Average Speed 154 | 119 120 190 Slowest Speed 200 | 200 120 190 Overloaded Moves . | . . . Propulsion Burnouts . | . . . Robots Hopped . | . . . Potential Cave-ins . | . . . Cave-ins Triggered . | . . . Exploration Rate (%) 14 | 3 26 13 Regions Visited 2 Branch Regions . Pre-discovered Areas . | . . . Known Exits Taken . | . . . Unknown Exits Taken 2 | 1 1 . Scrap Searched . | . . . Spaces Dug . | . . . Terrain Destroyed . | . . . Melee . | . . . Projectile . | . . . AOE . | . . . Terrain Rammed . | . . . Walls Destroyed . | . . . Machines Disabled . | . . . Actions | -11 -10 -9 --------- Run | Yrd Mat Mat Total 396 | 47 111 238 Wait 98 | 2 7 89 Move 267 | 35 99 133 Hop . | . . . Pick Up 7 | 2 3 2 Fast Attach 6 | 6 . . Attach 3 | 1 . 2 Detach . | . . . Swap 5 | . 1 4 Drop 1 | . 1 . Fire 9 | 1 . 8 Melee . | . . . Ram . | . . . Kick . | . . . Crush . | . . . Escape Stasis . | . . . Rewire . | . . . Trap . | . . . Miscellaneous . | . . . Route ------- -11/Scrapyard -10/Materials -9/Materials History --------- Turn | Location | Event 2 | -11/Scrapyard | Met Revision 17 26 | -11/Scrapyard | Discovered new exit (range 15) 60 | -11/Scrapyard | Entered Materials 141 | -10/Materials | Discovered new exit (range 16) 191 | -10/Materials | Entered another Materials area 191 | -9/Materials | Evolved 2 slots: Utility x1, Weapon x1 480 | -9/Materials | Build established: Skirmisher 569 | -9/Materials | Self-destructed Last Messages --------------- M009. 00325_ Connecting with Terminal... >>Trojan(Assimilate) Trojan loaded successfully. Testing... System interface override in place. 00378_ O-16 Technician sends out distress signal. 00378_ O-16 Technician: "IFF HANDSHAKE FAILED. SECURING TERMINAL." 00379_ O-16 Technician uses terminal to summon reinforcements. 00379_ ALERT: Hostiles spotted, dispatching reinforcements to Terminal M005. 00379_ O-16 Technician locks terminal. 00402_ K-01 Serf collects debris. 00406_ Acquired EM Shotgun. 00407_ K-01 Serf collects debris. 00417_ Y-45 Defender destroyed. 00418_ K-01 Serf collects debris. 00472_ G-34 Mercenary destroyed. 00481_ Acquired 49 matter. 00501_ Acquired Corrupted Aluminum Leg. Map ----- +----------------------------------------------------+ | ?????????????????????????????????????????????????? | | ?????????????????????????????????????????????????? | | ?????????????????????????????????????????????????? | | ?????????????????????????????????????????????????? | | ?????????????????????????????????????????????????? | | ?????????????????????????????????????????????????? | | ?????????????????????????????????????????????????? | | ?????????????????????????????????????????????????? | | ?????????????????????????????????????????????????? | | ?????????????????????????????????????????????????? | | ???????????????????????? # # ??????????????????? | | ???????????????????????? # # ??????????????????? | | ???????????????????????? # # ??????????????????? | | ???????????????????????? # # ??????????????????? | | ????????????????????????## ###############?????? | | ????????????????????????## ###############?????? | | ????????????????????????## r# ##?????? | | ????????????????????????## # """ """ ##?????? | | ???????????????????????### + """ """ ##?????? | | ???????????????????????### #^""" """ ##?????? | | ????????????????????? # = ##?????? | | ?????????????????????######g######+#########?????? | | ?????????????????????## ## #########?????? | | ?????????????????????##" ## ##????????????? | | ?????????????????????##T + ##????????????? | | ??????????????????## ##" @l #####????????????? | | ??????????????????## + """ #####????????????? | | ??????????????????## ## """ ###??????????????? | | ??????????????????## ## """ ###??????????????? | | ?????????????????????## % ####????????????? | | ?????????????????????###+#####+######????????????? | | ?????????????????????### # !##????????????? | | ??????????????????????## # """ ##????????????? | | ??????????????????????## # "T" ##????????????? | | ??????????????????## ### # ###########???? | | ?????????????????### ### #####+###+###########???? | | ?????????????????### # ##???? | | ???????????? # ##???? | | ????????????## ###### + ##???? | | ????????????###?##############+## ####+######### | | ?????????????????????#### ## #### ######### | | ???????????????????????## # ### ##### | | ???????????????????????##" """ # ### ##### | | ???????????????????????##T """ # " | | ???????????????????????##" """ # ###+######+## | | ???????????????????????## # ## # | | ???????????????????????################ # """ | | ???????????????????????################ # """ | | ?????????????????????????????????????## # """ | | ?????????????????????????????????????## # """ | +----------------------------------------------------+ Best States ------------- Heat Dissipation 28 Energy Generation 10 Energy Capacity 250 Matter Stores 262 Matter Capacity 300 Sight Range 16 Terrain Scan Density 10 Evasion (%) 55 Item Schematics ----------------- None Robot Schematics ------------------ None Fabricated ------------ Nothing Repaired ---------- Nothing Alien Tech Used ----------------- None Achievements -------------- None Challenges ------------ None Game ------ Seed VoltaicCryofiberInjector Manual? 0 Play Time 00:08:01 Cumulative 37.0 hours Start 2025.07.19 @ 20:42:48 End 2025.07.19 @ 20:50:34 Sessions 1 Manual Loads 0 Difficulty Rogue Special Mode None Game No. 195 Rogue 195 Adventurer 0 Explorer 0 Win Type - Total 0 Types 0/0/0/0/0/0/0/0/0/0 Lore% 19 Gallery% 18 Achievement% 18 Wizard Run 0 Options --------- Layout 0 ASCII 1 Keyboard 1 Movement Numpad Keybinds 1 Fullscreen 1 Font 18/X11 Map View 76x50 Zoom Use 0% Tactical HUD 1 Map Filters NONE Filters NONE Steam 1 RUN: 87c3b649-8569-4db1-807c-11de4baee270